bitfinex-derivatives/quotes_ETHF0:USTF0_20250411
["timestamp","ask_amount","ask_price","bid_price","bid_amount"]
[1744344929916,0.64240001,1557.9,1557.8,1.5682]
[1744344930216,1.92705001,1557.9,1557.8,1.5682]
[1744344930617,0.64240001,1557.9,1557.3,3.2078]
[1744344930819,0.10901762,1558.7,1557.8,3.2078]
[1744344931012,0.10901762,1558.7,1558.2,3.2078]
[1744344931208,0.10901762,1558.7,1558.5,4.4919]
[1744344931420,0.10901762,1558.7,1558.5,3.2078]
[1744344931617,12.46101762,1558.7,1558.2,0.90364887]
[1744344931817,1.2844,1558.2,1558.1,0.00964599]
[1744344932020,1.28481,1557.7,1557.6,0.76144326]
[1744344932213,1.28489,1557.6,1557.5,3.2078]
[1744344932522,1.28499,1557.5,1557.3,3.2078]
[1744344932722,1.28493,1557.6,1557.3,3.19474921]
[1744344933015,7.352,1557.7,1557.1,0.8491]
[1744344933016,8.63681,1557.7,1557.6,0.01305079]
[1744344933212,11.84461,1557.7,1557.6,0.01305079]
[1744344933412,1.27196921,1557.5,1557.3,0.00964599]
[1744344933607,0.0034048,1557.3,1557.1,3.2078]
[1744344933817,7.3534048,1557.3,1557.1,3.2078]
[1744344934022,7.35,1557.6,1557.2,2.4561915]
[1744344934219,1.28512,1557.4,1557.2,1.5840952]
[1744344934815,1.28511,1557.4,1557.2,1.5840952]
[1744344935020,1.285,1557.5,1557.2,1.5840952]
[1744344935322,1.3396,1557.5,1557.2,1.5840952]
[1744344935525,1.28513,1557.4,1557.2,1.5840952]
[1744344935721,1.28514,1557.3,1557.2,1.5840952]
[1744344936026,1.28522,1557.2,1557.1,3.21744599]
[1744344936220,9.97482,1557.2,1557.1,0.00964599]
[1744344936421,14.97482,1557.2,1557.1,0.00964599]
[1744344936717,18.18262,1557.2,1557.1,0.00964599]
[1744344936923,1.28547,1556.9,1556.8,10.08865063]
[1744344937113,3.2078,1556.9,1556.3,42.65779201]
[1744344937319,1.28589,1556.4,1556.3,42.65779201]
[1744344937519,8.63589,1556.4,1556.3,42.65779201]
[1744344937719,9.97819,1556.4,1556.3,42.65779201]
[1744344937933,1.28597,1556.3,1556.2,1.6924]
[1744344938224,3.27147,1556.3,1556.2,0.00964599]
[1744344938421,1.9855,1556.3,1556.2,0.00964599]
[1744344938621,3.27147,1556.3,1556.2,0.00964599]
[1744344939221,8.27147,1556.3,1556.2,0.00964599]
[1744344939421,1.2863,1555.9,1555.8,0.76810809]
[1744344939623,11.8461,1555.9,1555.8,0.76810809]
[1744344939928,1.28646,1555.7,1555.6,0.94606932]
[1744344941023,1.28655,1555.6,1555.5,9.64034852]
[1744344941326,105.9612,1555.9,1555.5,12.84814852]
[1744344941521,0.00964599,1555.7,1555.6,1.28655]
[1744344941722,0.00964599,1555.7,1555.5,3.21744599]
[1744344942226,0.00964599,1555.7,1555.6,1.28655]
[1744344942414,0.00964599,1555.7,1555.5,3.21744599]
[1744344942621,1.28655,1555.6,1555.5,0.00964599]
[1744344943013,3.21744599,1555.7,1555.5,0.00964599]
[1744344943214,1.29610599,1555.7,1555.5,1.74294599]
[1744344943413,1.29612599,1555.7,1555.5,1.74294599]
[1744344943723,0.00964599,1555.7,1555.5,1.74294599]
[1744344943922,1.28655,1555.6,1555.5,1.74294599]
[1744344944820,9.49435,1555.6,1555.5,5.99e-06]
[1744344945020,1.28704,1555.0,1554.9,4.9411]
[1744344945321,8.64204,1555.0,1554.9,4.9411]
[1744344945823,1.28721,1554.8,1554.7,3.2078]
[1744344946520,1.28729,1554.7,1554.6,0.00964599]
[1744344946724,2.93149,1554.7,1554.6,0.00964599]
[1744344947121,1.29680599,1554.9,1554.6,9.50481599]
[1744344947326,0.00964599,1554.9,1554.7,1.6546]
[1744344947522,1.28721,1554.8,1554.7,1.6546]
[1744344947719,1.28729,1554.7,1554.6,0.00964599]
[1744344947926,11.85309,1554.7,1554.6,0.00964599]
[1744344948118,8.64529,1554.7,1554.6,0.00964599]
[1744344948632,10.28949,1554.7,1554.6,0.00964599]
[1744344948930,7.358,1554.7,1554.6,0.00964599]
[1744344949232,11.85309,1554.7,1554.6,0.00964599]
[1744344949526,1.28779,1554.1,1554.0,3.2078]
[1744344949827,1.28791,1554.0,1553.8,3.2078]
[1744344950018,1.28791,1554.0,1553.9,1.5687]
[1744344950423,7.358,1554.1,1553.9,1.5687]
[1744344950721,8.64583,1554.1,1553.9,1.5687]
[1744344950930,7.358,1554.1,1553.9,4.7765]
[1744344951231,1.28795,1553.9,1553.8,0.00643068]
[1744344952223,2.93805,1553.9,1553.8,0.00643068]
[1744344952425,1.28795,1553.9,1553.8,0.00643068]
[1744344953024,3.66445,1553.9,1553.8,0.00643068]
[1744344953224,3.66445,1553.9,1553.8,6.8e-07]
[1744344953532,1.93195,1553.9,1553.8,6.8e-07]
[1744344954634,3.66445,1553.9,1553.8,6.8e-07]
[1744344955230,1.28795,1553.9,1553.8,5.00000068]
[1744344955530,1.28795,1553.9,1553.8,6.8e-07]
[1744344955730,5.13975,1553.9,1553.8,6.8e-07]
[1744344956728,1.93195,1553.9,1553.8,6.8e-07]
[1744344957033,5.13975,1553.9,1553.8,6.8e-07]
[1744344958826,10.13975,1553.9,1553.8,6.8e-07]
[1744344959138,1.2882,1553.6,1553.5,1.6742]
[1744344959328,8.6532,1553.6,1553.5,1.6742]
[1744344960229,8.6532,1553.6,1553.5,6.6742]
[1744344960527,8.6532,1553.6,1553.5,1.6742]
[1744344960729,0.644,1553.9,1553.5,8.95674633]
[1744344960929,0.00964599,1554.2,1553.7,3.2078]
[1744344961135,1.28757,1554.4,1554.0,4.49562]
[1744344961330,1.28757,1554.4,1553.9,3.2078]
[1744344961331,1.28787,1554.0,1553.9,3.2078]
[1744344961528,1.28787,1554.0,1553.9,44.0078]
[1744344961732,1.28787,1554.0,1553.9,40.8]
[1744344962034,1.28795,1553.9,1553.8,5.99e-06]
[1744344962436,8.54155,1553.9,1553.8,5.99e-06]
[1744344962742,3.54155,1553.9,1553.8,5.99e-06]
[1744344962932,8.54155,1553.9,1553.8,5.99e-06]
[1744344963132,3.22074,1553.5,1553.1,0.9036]
[1744344963337,1.28853,1553.2,1553.1,0.9036]
[1744344963534,1.28853,1553.2,1553.1,41.7036]
[1744344963937,1.28853,1553.2,1553.1,46.7036]
[1744344964339,1.28853,1553.2,1553.1,48.3209]
[1744344965140,1.28862,1553.1,1552.8,3.2078]
[1744344965339,8.7217,1553.0,1552.9,1.6646]
[1744344965848,8.7217,1553.0,1552.9,6.6646]
[1744344966137,8.7217,1553.0,1552.9,1.6646]
[1744344966345,1.29831599,1553.1,1552.9,6.6646]
[1744344966534,1.29826599,1553.1,1553.0,3.2078]
[1744344966736,1.29826599,1553.1,1553.0,4.8724]
[1744344967240,1.29826599,1553.1,1553.0,1.6646]
[1744344967438,0.00964599,1553.1,1553.0,9.8724]
[1744344967642,0.00964599,1553.1,1553.0,50.6724]
[1744344967944,1.29826599,1553.1,1553.0,45.6724]
[1744344968135,0.00964599,1553.1,1553.0,50.6724]
[1744344968543,105.58,1553.6,1553.0,50.6724]
[1744344968839,1.28853,1553.2,1553.1,1.8078]
[1744344969247,1.28862,1553.1,1553.0,1.6646]
[1744344970647,1.2887,1553.0,1552.9,0.00964599]
[1744344970842,4.4965,1553.0,1552.9,0.00964599]
[1744344971350,1.2887,1553.0,1552.9,0.00964599]
[1744344973542,1.94423576,1553.0,1552.9,0.00964599]
[1744344975142,5.15203576,1553.0,1552.9,0.00964599]
[1744344975949,1.94423576,1553.0,1552.9,0.00964599]
[1744344976537,8.081,1553.1,1552.9,0.00964599]
[1744344976739,1.2887,1553.0,1552.9,0.00964599]
[1744344976939,7.437,1553.1,1552.9,3.21744599]
[1744344977239,8.72562,1553.1,1553.0,1.7095]
[1744344977443,7.437,1553.1,1553.0,1.7095]
[1744344977638,0.00964599,1553.2,1553.0,9.71121845]
[1744344977948,1.28862,1553.1,1553.0,0.24406]
[1744344978548,1.28862,1553.1,1553.0,3.45186]
[1744344979146,1.28862,1553.1,1553.0,0.24406]
[1744344979750,7.44764599,1553.2,1553.0,8.45186]
[1744344980048,1.28862,1553.1,1553.0,3.45186]
[1744344980652,1.28862,1553.1,1553.0,0.24406]
[1744344981243,6.18872,1553.1,1553.0,0.24406]
[1744344981445,1.2887,1553.0,1552.9,0.00964599]
[1744344981654,2.981,1553.0,1552.9,0.00964599]
[1744344982149,1.2887,1553.0,1552.9,0.00964599]
[1744344982350,1.2887,1553.0,1552.9,1.66344599]
[1744344983651,2.9115,1553.0,1552.9,0.00964599]
[1744344985958,1.2887,1553.0,1552.9,0.00964599]
[1744344986747,4.4965,1553.0,1552.9,0.00964599]
[1744344987361,9.4965,1553.0,1552.9,5.99e-06]
[1744344988160,4.4965,1553.0,1552.9,5.99e-06]
[1744344988658,1.2887,1553.0,1552.9,5.99e-06]
[1744344988857,1.2887,1553.0,1552.9,1.61300599]
[1744344989054,1.2887,1553.0,1552.9,5.99e-06]
[1744344990558,1.2887,1553.0,1552.9,1.61300599]
[1744344990854,1.2887,1553.0,1552.9,5.99e-06]
[1744344991054,8.7277,1553.0,1552.9,5.99e-06]
[1744344991759,7.439,1553.0,1552.9,5.99e-06]
[1744344991961,7.439,1553.0,1552.9,5.00000599]
[1744344992157,1.2887,1553.0,1552.9,6.06740599]
[1744344992362,1.2887,1553.0,1552.9,2.63220599]
[1744344993267,1.9327,1553.0,1552.9,5.99e-06]
[1744344994867,6.9327,1553.0,1552.9,5.99e-06]
[1744344995070,1.9327,1553.0,1552.9,5.99e-06]
[1744344995466,3.5441,1553.0,1552.9,5.99e-06]
[1744344995967,11.7519,1553.0,1552.9,5.99e-06]
[1744344999275,1.2892,1552.4,1552.3,1.5997]
[1744344999476,1.2892,1552.4,1552.3,42.3997]
[1744345000171,7.175,1552.5,1552.2,3.2078]
[1744345000172,1.28928,1552.3,1552.2,3.2078]
[1744345000379,1.28945,1552.1,1552.0,1.5997]
[1744345000772,1.28945,1552.1,1552.0,42.3997]
[1744345001671,1.28961,1551.9,1551.8,13.65625886]
[1744345002072,9.49741,1551.9,1551.8,10.94104886]
[1744345002377,12.26121,1551.9,1551.8,10.94104886]
[1744345002569,12.26121,1551.9,1551.8,9.48343886]
[1744345002770,7.26121,1551.9,1551.8,9.48343886]
[1744345003076,12.26121,1551.9,1551.8,8.22614886]
[1744345003277,12.26121,1551.9,1551.8,4.96508886]
[1744345003579,12.26121,1551.9,1551.8,2.94853886]
[1744345003774,10.9716,1551.9,1551.7,17.56160536]
[1744345003980,1.28995,1551.5,1551.4,27.79836377]
[1744345004277,8.46595,1551.5,1551.4,27.79836377]
[1744345005582,8.46595,1551.5,1550.9,3.2078]
[1744345005583,1.29032,1551.1,1550.9,3.2078]
[1744345005778,7.177,1551.1,1550.9,3.2078]
[1744345005978,7.177,1551.1,1551.0,1.162]
[1744345006274,8.46728,1551.1,1551.0,1.162]
[1744345006576,8.46728,1551.1,1551.0,6.162]
[1744345007079,8.46728,1551.1,1551.0,1.162]
[1744345007780,7.177,1551.1,1551.0,1.162]
[1744345008076,8.46728,1551.1,1551.0,1.162]
[1744345008282,4.913,1551.4,1551.0,6.162]
[1744345008471,1.29023,1551.2,1551.0,1.162]
[1744345008875,1.29017,1551.3,1551.1,3.2078]
[1744345009281,8.46907,1551.4,1551.1,8.2078]
[1744345009481,8.46907,1551.4,1551.3,3.2078]
[1744345010384,1.29007,1551.4,1551.3,3.2078]
[1744345011282,7.18,1551.5,1551.3,9.49789]
[1744345011586,1.29003,1551.4,1551.3,3.2078]
[1744345012879,8.194,1551.5,1551.3,8.2078]
[1744345013188,1.29953599,1551.6,1551.4,1.29001]
[1744345013380,1.29953599,1551.6,1551.5,4.2931]
[1744345013887,0.00964599,1551.6,1551.5,9.2931]
[1744345014693,0.00964599,1551.6,1551.5,50.0931]
[1744345015188,0.00964599,1551.6,1551.5,51.38305]
[1744345016687,1.9344,1552.0,1551.7,1.2897]
[1744345016989,1.93439,1552.0,1551.8,3.2078]
[1744345017591,1.93439,1552.0,1551.8,4.49748]
[1744345018589,1.2897,1551.8,1551.7,0.00964599]
[1744345019693,1.28967,1551.9,1551.7,0.00964599]
[1744345019991,2.91949,1551.9,1551.7,0.00964599]
[1744345020593,1.2897,1551.8,1551.7,0.00964599]
[1744345020791,2.9195,1551.8,1551.7,0.00964599]
[1744345021283,7.9195,1551.8,1551.7,0.00964599]
[1744345021479,9.0735,1551.8,1551.7,0.00964599]
[1744345023092,4.0735,1551.8,1551.7,0.00964599]
[1744345023395,9.0735,1551.8,1551.7,0.00964599]
[1744345025997,9.0735,1551.8,1551.7,5.99e-06]
[1744345027397,1.29028,1551.1,1551.0,3.2078]
[1744345027600,7.91428,1551.1,1551.0,3.2078]
[1744345027789,7.91428,1551.1,1551.0,4.8474]
[1744345028288,1.29045,1550.9,1550.8,40.8]
[1744345029003,1.29072,1550.6,1550.4,5.49034633]
[1744345029192,1.29072,1550.6,1550.5,1.615]
[1744345029492,1.29072,1550.6,1550.5,42.415]
[1744345029699,2.91212,1550.6,1550.5,1.615]
[1744345029901,3.22695,1550.5,1550.1,4.56494633]
[1744345030093,1.29102,1550.3,1550.2,1.615]
[1744345030398,7.91602,1550.3,1550.2,40.8]
[1744345030798,1.29103,1550.2,1550.1,1.1045]
[1744345030996,6.625,1550.3,1550.1,1.1045]
[1744345031297,6.625,1550.3,1550.0,3.2078]
[1744345031498,1.7293,1550.2,1550.0,3.2078]
[1744345031694,1.2912,1550.0,1549.9,1.6381]
[1744345031993,6.625,1550.3,1549.9,1.6381]
[1744345032196,1.2912,1550.0,1549.9,1.6381]
[1744345032993,3.0205,1550.0,1549.9,1.6381]
[1744345033702,2.37490001,1550.0,1549.7,1.153]
[1744345033903,7.9183,1549.9,1549.7,1.153]
[1744345034099,6.627,1549.9,1549.8,1.6381]
[1744345034299,6.627,1549.9,1549.8,6.13726]
[1744345034500,6.627,1549.9,1549.8,9.8459]
[1744345034690,7.91828,1549.9,1549.8,9.8459]
[1744345034895,1.29128,1549.9,1549.8,4.8459]
[1744345035203,1.29126,1550.0,1549.8,9.8459]
[1744345035404,1.29126,1550.0,1549.9,1.7072]
[1744345035598,1.30084773,1550.1,1549.9,1.7072]
[1744345035797,0.00967773,1550.1,1550.0,4.499]
[1744345035998,0.00967773,1550.1,1550.0,7.3004]
[1744345036200,0.00967773,1550.1,1550.0,12.3004]
[1744345036393,1.30078773,1550.1,1550.0,11.0092]
[1744345036600,0.00967773,1550.1,1550.0,11.0092]
[1744345037196,0.00967773,1550.1,1550.0,12.3004]
[1744345037397,0.00967773,1550.1,1550.0,11.0092]
[1744345037598,0.00967773,1550.1,1550.0,12.3004]
[1744345037799,0.00967773,1550.1,1550.0,55.38294633]
[1744345038208,0.00967773,1550.1,1550.0,54.09174633]
[1744345038802,1.30078773,1550.1,1550.0,49.09174633]
[1744345039198,7.92978773,1550.1,1550.0,42.5072]
[1744345039909,7.92978773,1550.1,1550.0,40.8]
[1744345040303,1.29128,1549.9,1549.8,4.9032]
[1744345040702,1.29128,1549.9,1549.8,45.7032]
[1744345040906,1.29128,1549.9,1549.8,44.0078]
[1744345041104,1.29144,1549.7,1549.6,4.7743]
[1744345041307,7.92044,1549.7,1549.6,4.7743]
[1744345041609,7.92044,1549.7,1549.6,45.5743]
[1744345042501,6.629,1549.7,1549.6,42.3665]
[1744345042705,6.629,1549.7,1549.6,45.5743]
[1744345043303,6.629,1549.7,1549.6,51.86583]
[1744345043609,6.66045931,1549.7,1549.6,51.86583]
[1744345044807,0.00967773,1550.1,1550.0,1.2912]
[1744345045004,0.00967773,1550.1,1550.0,4.499]
[1744345045303,1.5835,1550.6,1550.1,1.29108]
[1744345045606,1.27784849,1550.4,1550.3,3.2078]
[1744345046003,6.367,1550.5,1550.3,5.49034633]
[1744345046310,0.00967773,1550.6,1550.4,5.17397633]
[1744345046606,1.30039773,1550.6,1550.5,3.2078]
[1744345046802,1.30039773,1550.6,1550.5,4.7738]
[1744345047000,1.30039773,1550.6,1550.5,42.366]
[1744345047207,1.30037773,1550.6,1550.5,42.366]
[1744345047408,6.30037773,1550.6,1550.5,40.8]
[1744345047612,0.00967773,1550.6,1550.3,6.06474]
[1744345047905,6.367,1550.5,1550.4,1.566]
[1744345048209,0.00967773,1550.6,1550.4,42.366]
[1744345048416,0.00967773,1550.6,1550.4,44.7216]
[1744345048710,1.30041773,1550.6,1550.4,44.7216]
[1744345048912,1.29078,1550.5,1550.4,44.7216]
[1744345049499,6.37667773,1550.6,1550.4,46.01244]
[1744345049702,6.37667773,1550.6,1550.5,3.2078]
[1744345049911,6.37667773,1550.6,1550.5,4.873]
[1744345050514,7.66737773,1550.6,1550.5,1.6652]
[1744345050813,9.40307773,1550.6,1550.5,1.6652]
[1744345052014,0.00967773,1550.6,1550.5,8.44632633]
[1744345052801,0.00967773,1550.6,1550.5,47.95554633]
[1744345054415,1.30037773,1550.6,1550.5,47.95554633]
[1744345055513,9.33047773,1550.6,1550.5,40.8]
[1744345055813,1.29086,1550.4,1550.3,3.2078]
[1744345056008,16.26657773,1550.6,1550.2,0.00967773]
[1744345056009,1.29095,1550.3,1550.2,0.00967773]
[1744345056204,1.29095,1550.3,1550.2,40.80967773]
[1744345056401,7.65695,1550.3,1550.2,40.80967773]
[1744345056604,7.65695,1550.3,1550.2,42.40267773]
[1744345058117,7.65695,1550.3,1550.2,40.80967773]
[1744345058509,12.65695,1550.3,1550.2,0.00967773]
[1744345058814,1.29144,1549.7,1549.6,1.593]
[1744345059008,1.29144,1549.7,1549.6,1.57991849]
[1744345059202,9.37969,1549.8,1549.6,1.57991849]
[1744345059414,1.29144,1549.7,1549.6,1.57991849]
[1744345059611,1.29153,1549.6,1549.5,44.0078]
[1744345060717,1.32123586,1549.6,1549.5,44.0078]
[1744345060919,1.32123586,1549.6,1549.5,40.8]
[1744345061413,3.04353586,1549.6,1549.5,40.8]
[1744345061619,0.02970586,1549.6,1549.5,40.8]
[1744345061919,1.32123586,1549.6,1549.5,40.8]
[1744345062116,3.02283586,1549.6,1549.5,40.8]
[1744345062819,3.03699754,1549.6,1549.5,40.8]
[1744345063210,1.2917,1549.4,1549.3,1.6571]
[1744345063511,7.712727,1549.4,1549.3,1.6571]
[1744345063714,7.712727,1549.4,1549.3,42.4571]
[1744345064921,7.712727,1549.4,1549.3,40.8]
[1744345065422,7.712727,1549.4,1549.3,42.4501]
[1744345065723,6.421027,1549.4,1549.3,42.4501]
[1744345066221,6.421027,1549.4,1549.3,43.74188]
[1744345066617,6.421027,1549.4,1549.3,42.4501]
[1744345067219,6.421027,1549.4,1549.3,43.74188]
[1744345067720,0.054027,1549.4,1549.3,51.02442633]
[1744345068627,1.345727,1549.4,1549.3,44.73264633]
[1744345069823,0.054027,1549.4,1549.3,44.73264633]
[1744345070126,0.054027,1549.4,1549.3,46.02442633]
[1744345070519,0.054027,1549.4,1549.3,51.02442633]
[1744345071215,0.054027,1549.4,1549.3,43.08254633]
[1744345071421,0.054027,1549.4,1549.3,51.06452633]
[1744345073523,0.05996593,1549.4,1549.3,46.06452633]
[1744345073920,0.05996593,1549.4,1549.3,43.78198]
[1744345075515,0.05996593,1549.4,1549.3,42.4902]
[1744345075716,0.05996593,1549.4,1549.3,43.78198]
[1744345081224,1.35166593,1549.4,1549.3,42.4902]
[1744345081929,1.29195,1549.1,1549.0,5.49034633]
[1744345082129,7.41495,1549.1,1549.0,3.2078]
[1744345082330,7.41495,1549.1,1549.0,44.0078]
[1744345082532,7.47491593,1549.1,1549.0,44.0078]
[1744345084429,6.18296593,1549.1,1549.0,44.0078]
[1744345084835,7.47491593,1549.1,1549.0,45.5934]
[1744345085030,6.18296593,1549.1,1549.0,45.5934]
[1744345085225,7.47491593,1549.1,1549.0,45.5934]
[1744345086729,7.47491593,1549.1,1549.0,44.0078]
[1744345087933,7.47491593,1549.1,1549.0,40.8]
[1744345088236,12.47491593,1549.1,1549.0,40.8]
[1744345088430,1.29211,1548.9,1548.8,1.6144]
[1744345088635,1.35207593,1548.9,1548.8,1.6144]
[1744345088933,1.35207593,1548.9,1548.8,42.4144]
[1744345089637,0.05996593,1548.9,1548.8,42.4144]
[1744345089937,0.05996593,1548.9,1548.8,43.7066]
[1744345091337,1.35207593,1548.9,1548.8,43.7066]
[1744345092134,0.05996593,1548.9,1548.8,43.7066]
[1744345092543,1.35207593,1548.9,1548.8,43.7066]
[1744345093445,0.05996593,1548.9,1548.8,43.7066]
[1744345093641,1.35207593,1548.9,1548.8,43.7066]
[1744345093841,0.05996593,1548.9,1548.8,45.98914633]
[1744345098440,0.05996593,1548.9,1548.8,46.81006608]
[1744345099242,0.05996593,1548.9,1548.8,45.98914633]
[1744345103948,1.35207593,1548.9,1548.8,44.69694633]
[1744345104153,1.35207593,1548.9,1548.8,40.8]
[1744345105049,0.05996593,1548.9,1548.8,40.8]
[1744345105252,1.35207593,1548.9,1548.8,40.8]
[1744345105444,0.05996593,1548.9,1548.8,42.0922]
[1744345105753,0.05996593,1548.9,1548.8,43.6599]
[1744345106147,0.05996593,1548.9,1548.8,46.76513402]
[1744345106452,0.05996593,1548.9,1548.8,45.94244633]
[1744345106844,0.05996593,1548.9,1548.8,46.76542888]
[1744345108047,11.57153776,1549.3,1549.2,1.29186]
[1744345108353,11.57153776,1549.3,1549.2,4.49966]
[1744345108657,11.57153776,1549.3,1549.2,45.29966]
[1744345108954,12.86331776,1549.3,1549.2,44.0078]
[1744345109755,17.86331776,1549.3,1549.2,40.8]
[1744345109949,1.29195,1549.1,1549.0,5.49034633]
[1744345110153,1.29195,1549.1,1549.0,7.06094633]
[1744345110356,1.29195,1549.1,1549.0,47.86094633]
[1744345110859,1.29195,1549.1,1549.0,46.29034633]
[1744345111154,12.13395,1549.1,1549.0,46.29034633]
[1744345111356,12.13395,1549.1,1549.0,44.0078]
[1744345111762,13.78435,1549.1,1549.0,44.0078]
[1744345112060,1.29211,1548.9,1548.8,3.2078]
[1744345112260,1.29221,1548.8,1548.6,7.60723767]
[1744345112563,1.6504,1548.7,1548.6,6.78268633]
[1744345112956,5.842,1548.8,1548.7,1.29228]
[1744345113150,5.842,1548.8,1548.7,42.09228]
[1744345113363,7.4924,1548.8,1548.7,40.8]
[1744345113564,5.842,1548.8,1548.7,42.09228]
[1744345113766,7.5213,1548.8,1548.7,40.8]
[1744345114159,8.8135,1548.8,1548.7,40.8]
[1744345114367,7.5213,1548.8,1548.7,40.8]
[1744345114565,8.8135,1548.8,1548.7,40.8]
[1744345114862,7.5213,1548.8,1548.7,40.8]
[1744345115162,0.00967773,1548.9,1548.8,1.2922]
[1744345115365,1.30178773,1548.9,1548.8,3.2078]
[1744345115568,0.00967773,1548.9,1548.8,4.5]
[1744345115869,0.00967773,1548.9,1548.8,7.60616245]
[1744345116165,0.00967773,1548.9,1548.8,6.78254633]
[1744345116461,0.00967773,1548.9,1548.8,7.60616245]
[1744345116667,0.00967773,1548.9,1548.8,12.60616245]
[1744345116861,0.00967773,1548.9,1548.8,13.12405377]
[1744345117066,0.00967773,1548.9,1548.8,12.60616245]
[1744345117261,0.00967773,1548.9,1548.8,13.12405377]
[1744345117457,0.00967773,1548.9,1548.8,12.60616245]
[1744345117662,0.00967773,1548.9,1548.8,13.12350895]
[1744345117868,0.00967773,1548.9,1548.8,53.40616245]
[1744345118055,0.00967773,1548.9,1548.8,53.92350895]
[1744345118970,5.06228923,1549.0,1548.9,1.29211]
[1744345119164,5.06228923,1549.0,1548.9,2.63307262]
[1744345119371,5.06228923,1549.0,1548.9,7.6316513]
[1744345119868,5.06260469,1549.5,1549.1,3.22987]
[1744345120060,5.06260469,1549.5,1549.4,4.4995]
[1744345120262,5.07228242,1549.5,1549.4,4.4995]
[1744345120863,5.07228242,1549.5,1549.4,12.60447798]
[1744345121569,5.07228242,1549.5,1549.4,52.58204633]
[1744345121873,5.07228242,1549.5,1549.4,48.40447798]
[1744345122069,12.3526722,1549.8,1549.5,2.28254633]
[1744345122263,9.4825622,1549.8,1549.7,4.49924]
[1744345122464,7.4887022,1549.8,1549.7,10.34024]
[1744345122764,7.4887022,1549.8,1549.7,15.34024]
[1744345122965,6.1058122,1549.8,1549.7,15.34024]
[1744345123864,0.00967773,1549.9,1549.7,6.78178633]
[1744345124071,0.00967773,1549.9,1549.7,5.49034633]
[1744345124262,1.72167773,1549.9,1549.8,1.29136]
[1744345124464,1.72167773,1549.9,1549.7,5.49034633]
[1744345124465,1.72167773,1549.9,1549.7,6.78174633]
[1744345124660,1.72167773,1549.9,1549.7,5.49034633]
[1744345124868,0.00967773,1549.9,1549.8,3.57390633]
[1744345125472,0.00967773,1549.9,1549.8,6.36710633]
[1744345127367,0.00967773,1549.9,1549.8,3.57390633]
[1744345130776,0.00967773,1549.9,1549.8,6.78170633]
[1744345132470,0.00967773,1549.9,1549.8,3.2078]
[1744345132778,0.00967773,1549.9,1549.8,4.49916]
[1744345132971,1.87847773,1549.9,1549.8,4.49916]
[1744345133469,0.00967773,1549.9,1549.8,4.49916]
[1744345136270,1.71067773,1549.9,1549.8,4.49916]
[1744345136873,0.00967773,1549.9,1549.8,4.49916]
[1744345140075,7.73e-06,1549.9,1549.8,11.78170633]
[1744345141679,7.73e-06,1549.9,1549.8,7.25540123]
[1744345143177,7.73e-06,1549.9,1549.8,12.25540123]
[1744345143476,7.476,1550.7,1550.6,1.2907]
[1744345143678,8.75352849,1550.7,1550.6,40.8]
[1744345143983,13.75352849,1550.7,1550.6,40.8]
[1744345144886,14.3991285,1550.7,1550.6,40.8]
[1744345145782,1.2907,1550.6,1550.5,0.00967773]
[1744345145984,3.0805,1550.6,1550.5,0.00967773]
[1744345146179,8.0805,1550.6,1550.5,40.80967773]
[1744345146376,8.72610001,1550.6,1550.5,40.80967773]
[1744345147385,8.72610001,1550.6,1550.5,0.00967773]
[1744345148186,1.7898,1550.6,1550.5,1.30045773]
[1744345148482,5.755,1550.7,1550.6,1.2907]
[1744345148679,7.5699,1550.7,1550.5,3.21747773]
[1744345148884,5.755,1550.7,1550.6,1.2907]
[1744345149078,2.99867773,1550.8,1550.7,1.29061]
[1744345149079,0.00967773,1550.8,1550.7,1.29061]
[1744345149279,0.00967773,1550.8,1550.7,3.2078]
[1744345149479,6.30020773,1550.8,1550.7,3.2078]
[1744345149787,0.00967773,1550.8,1550.6,3.57321633]
[1744345149987,1.8149,1550.7,1550.6,2.28254633]
[1744345150187,1.2907,1550.6,1550.5,3.21747773]
[1744345150389,6.2907,1550.6,1550.5,3.21747773]
[1744345150589,3.071,1550.6,1550.5,3.21747773]
[1744345151888,1.29086,1550.4,1550.3,40.8]
[1744345152084,1.29111,1550.1,1550.0,3.2078]
[1744345152283,1.29111,1550.1,1550.0,3.19471849]
[1744345152479,6.54142,1550.3,1549.6,7.13714633]
[1744345152686,1.29133,1549.9,1549.6,8.54242633]
[1744345152886,1.7803,1549.8,1549.6,5.33462633]
[1744345153089,1.7803,1549.8,1549.7,42.09144]
[1744345153283,0.00967773,1549.9,1549.8,1.29136]
[1744345153584,0.00967773,1549.9,1549.8,4.49916]
[1744345154884,0.00967773,1549.9,1549.6,3.21747773]
[1744345154885,1.29144,1549.7,1549.6,3.21747773]
[1744345155089,7.04644,1549.7,1549.6,0.00967773]
[1744345155494,8.85864,1549.7,1549.6,40.80967773]
[1744345156088,13.85864,1549.7,1549.6,0.00967773]
[1744345156791,17.06644,1549.7,1549.6,0.00967773]
[1744345157888,1.29186,1549.2,1549.1,13.12043855]
[1744345158188,5.756,1549.2,1549.1,13.12043855]
[1744345158494,5.756,1549.2,1549.1,55.21238855]
[1744345158995,5.756,1549.2,1549.1,45.29975]
[1744345159296,7.6335,1549.2,1549.1,44.0078]
[1744345159696,9.57096001,1549.2,1549.1,44.0078]
[1744345159898,14.57096001,1549.2,1549.1,3.2078]
[1744345160797,9.57096001,1549.2,1549.1,3.2078]
[1744345160990,1.29195,1549.1,1549.0,0.00967773]
[1744345161296,3.11155,1549.1,1549.0,0.00967773]
[1744345161890,8.11155,1549.1,1549.0,0.00967773]
[1744345165199,1.2922,1548.8,1548.7,3.2078]
[1744345165393,6.8202,1548.8,1548.7,3.2078]
[1744345165597,3.23076,1548.7,1548.2,4.50046]
[1744345165799,1.29251,1548.5,1548.3,40.8]
[1744345166103,5.528,1548.4,1548.3,42.09261]
[1744345166293,5.528,1548.4,1548.3,45.30041]
[1744345166493,0.00967773,1548.5,1548.4,1.29253]
[1744345166995,0.00967773,1548.5,1548.4,6.29253]
[1744345169195,0.00967773,1548.5,1548.4,1.29253]